Cogmind - Beta 17.1 @@@ ROGUE MODE // 2026.09.04 @ 12:02:02 Player: pirluit Result: Destroyed by TH-8CQ(R) with Subdweller Beam Cannon Performance ------------- Evolutions (0) 0 Regions Visited (2) 400 Robots Destroyed (12) 60 Value Destroyed (340) 340 Prototype IDs (0) 0 Alien Tech Used (0) 0 Bonus (0) 0 TOTAL SCORE: 800 Bonus ------- None Cogmind --------- Core Integrity 0/250 Matter 228/300 Energy 125/125 System Corruption 0% Temperature Cool (9) Movement Walking (120) Location -10/Subcaves Parts ------- > --- POWER (1) -------- Light Ion Engine > --- PROPULSION (2) --- Myomer Leg > --- UTILITY (2) ------ Small Storage Unit Targeting Computer > --- WEAPON (2) ------- (None) > --- INVENTORY (8) ---- Aluminum Leg Aluminum Leg Aluminum Leg Subdweller Optics Improved Terrain Scanner Mining Laser Peak State ------------ > --- POWER ------------ Light Nuclear Core > --- PROPULSION ------- Myomer Leg Myomer Leg > --- UTILITY ---------- Small Storage Unit Targeting Computer > --- WEAPON ----------- Light Cannon > --- INVENTORY -------- Light Ion Engine Aluminum Leg Aluminum Leg Aluminum Leg Visual Processing Unit Improved Terrain Scanner Medium Laser Mining Laser [Rating: 21] Favorites ----------- Power Light Ion Engine Engine Light Ion Engine Power Core Light Nuclear Core Propulsion Aluminum Leg Leg Aluminum Leg Utility Small Storage Unit Device Seismic Detector Storage Small Storage Unit Processor Targeting Computer Weapon Assault Rifle Energy Gun Medium Laser Ballistic Gun Assault Rifle Ballistic Cannon Light Cannon Build | -11 -10 -10 ------- Run | Yrd Mat Sub Slots Evolved . | . . . Power . | . . . Propulsion . | . . . Utility . | . . . Weapon . | . . . Parts Attached 14 | 7 3 4 Power 4 | 1 2 1 Engine 3 | 1 1 1 Core 1 | . 1 . Reactor . | . . . Propulsion 4 | 2 . 2 Treads . | . . . Leg 4 | 2 . 2 Wheel . | . . . Hover . | . . . Flight . | . . . Utility 3 | 2 . 1 Device 1 | 1 . . Storage 1 | 1 . . Processor 1 | . . 1 Hackware . | . . . Protection . | . . . Artifact . | . . . Weapon 3 | 2 1 . Energy Gun 1 | 1 . . Energy Cannon . | . . . Ballistic Gun 1 | 1 . . Ballistic Cannon 1 | . 1 . Launcher . | . . . Special Weapon . | . . . Impact Weapon . | . . . Slashing Weapon . | . . . Piercing Weapon . | . . . Special Melee Weapon . | . . . Unidentified Prototypes . | . . . Parts Lost 6 | . . 6 Power 1 | . . 1 Propulsion 1 | . . 1 Utility 1 | . . 1 Weapon 3 | . . 3 Highest Loss Streak 3 | . . 3 To Critical Strikes 1 | . . 1 Average Backups 6 | 3 7 7 Power 1 | . 1 . Propulsion 3 | 2 3 3 Utility 1 | . 1 2 Weapon 1 | . 1 1 Tool/Special . | . . . Unused Backups 11 | . 5 6 Power . | . . . Propulsion 8 | . 5 3 Utility 2 | . . 2 Weapon 1 | . . 1 Tool/Special . | . . . Average Slot Usage (%) 95 | . 99 87 Engine 8 | . 11 1 Core 5 | . 2 11 Leg 27 | . 28 27 Device 11 | . 14 6 Storage 14 | . 14 14 Processor 1 | . . 4 Energy Gun 2 | . 2 2 Ballistic Gun 12 | . 14 8 Ballistic Cannon 10 | . 11 9 Peak Build Rating 21 | 7 10 21 Average Rating 8 | 5 7 12 On Entrance 5 | . 7 10 Avg Prop Armor Cover (%) . | . . . Naked Turns . | . . . Heaviest Build 16 | 13 16 16 Greatest Support 50 | 20 20 50 Greatest Overweight (x) . | . . . Average Overweight (x) . | . . . Largest Inventory Capacity 8 | 8 8 8 Average Capacity 7 | 7 8 8 Most Carried 8 | 7 8 8 Average Carried 6 | 4 7 7 Final Capacity 8 | 8 8 8 Final Carried 8 | 7 8 6 Class Distribution -------------------- 100% | Mutant Dominant Class ---------------- Mutant | -10/Materials Mutant | -10/Subcaves Resources | -11 -10 -10 ----------- Run | Yrd Mat Sub Matter Collected 502 | 285 151 66 Remotely . | . . . Salvage Created 407 | 86 187 134 Parts 32 | 4 14 14 Haulers Intercepted 1 | . 1 . Recyclers Shooed . | . . . Parts Field Recycled . | . . . Retrieved Matter . | . . . Parts Self-Destructed . | . . . Prevented . | . . . Parts Restored . | . . . Kills | -11 -10 -10 ------- Run | Yrd Mat Sub Combat Hostiles Destroyed 8 | . 4 4 Guns 5 | . 3 2 Cannons 3 | . 1 2 Classes Destroyed 6 | 2 3 1 Tunneler 1 | 1 . . Hauler 1 | . 1 . Recycler 1 | 1 . . Watcher 1 | . 1 . Grunt 4 | . 4 . Subdweller 4 | . . 4 Best Kill Streak 2 | 1 2 2 Combat Bots Only 2 | . 2 2 Max Kills in Single Turn 1 | 1 1 1 Gunslinging . | . . . Exploded . | . . . Melee . | . . . Uniques/NPCs Destroyed . | . . . Combat | -11 -10 -10 -------- Run | Yrd Mat Sub Hostile Shots Fired 95 | . 24 71 Missed 35 | . 5 30 Hits 60 | . 19 41 Projectile 60 | . 19 41 Critical Strikes 1 | . . 1 Damage Taken 1081 | . 212 869 Core 255 | . 28 227 Absorbed by Shields . | . . . Core Remaining (%) 100 | 100 . . Volleys Fired 45 | 5 24 16 Largest 2 | 2 2 2 Hottest 70 | 70 50 50 Shots Fired 81 | 10 48 23 Gun 47 | 10 24 13 Cannon 34 | . 24 10 Launcher . | . . . Special . | . . . Kinetic 70 | 5 48 17 Thermal 11 | 5 . 6 Explosive . | . . . Electromagnetic . | . . . Robot Hit Streak 6 | 3 6 6 Robot Miss Streak 3 | 1 3 1 Penetration Max . | . . . Secondary Targets . | . . . Shots Hit Robots 52 | 6 29 17 Core Hits 21 | 3 11 7 Critical Kills . | . . . Critical Parts Destroyed . | . . . Critical Strikes . | . . . Melee Attacks . | . . . Impact . | . . . Slashing . | . . . Piercing . | . . . Sneak Attacks . | . . . Combat Hostiles . | . . . Follow-up Attacks . | . . . Damage Inflicted 769 | 74 465 230 Guns 371 | 74 203 94 Cannons 398 | . 262 136 Explosions . | . . . Melee . | . . . Ramming . | . . . Kinetic 707 | 49 465 193 Thermal 62 | 25 . 37 Explosive . | . . . Electromagnetic . | . . . Impact . | . . . Slashing . | . . . Piercing . | . . . Highest Corruption . | . . . Average Corruption . | . . . Corruption Purged . | . . . Corruption Blocked . | . . . Overload Shots . | . . . Overflow Damage . | . . . Projectiles . | . . . Explosions . | . . . Melee . | . . . Knockbacks 9 | . 7 2 Impact . | . . . Kinetic 7 | . 5 2 Secondary 2 | . 2 . Self-Inflicted Damage . | . . . Shots . | . . . Rammed . | . . . Targets Rammed . | . . . Kicked . | . . . Crushed . | . . . Highest Temperature 9 | 9 6 . Average Temperature 4 | 6 2 . Received Heat Transfer 279 | . 105 174 Siege Activations . | . . . Martial Activations . | . . . Shielding Activations . | . . . Robots Disrupted . | . . . Combat Hostiles . | . . . Robots Corrupted . | . . . Combat Hostiles . | . . . Parts Fried . | . . . Impact Corruptions . | . . . Robots Melted . | . . . Combat Hostiles . | . . . Parts Melted . | . . . Heat Transferred 185 | 74 . 111 Parts Sabotaged . | . . . Parts Stolen . | . . . Parts Stripped . | . . . Power Chain Reactions . | . . . Alert | -11 -10 -10 ------- Run | Yrd Mat Sub Maximum Alert Level . | . . . Low Security (%) 100 | 100 100 . Level 1 . | . . . Level 2 . | . . . Level 3 . | . . . Level 4 . | . . . Level 5 . | . . . High Security . | . . . Max Security . | . . . Peak Influence 40 | 5 40 . Initial . | . . . Average 8 | . 10 . Influence Increases 119 | 10 109 . Destroy 0b10 Robot/C 80 | . 80 . Destroy 0b10 Robot/NC 20 | 10 10 . Destroy Leader 14 | . 14 . Successful Hack 4 | . 4 . Destroy Structure 1 | . 1 . Influence Decreases 119 | 10 92 17 Entered New Map 9 | . . 9 Time Decay 110 | 10 92 8 Squads Dispatched . | . . . Investigation . | . . . Extermination . | . . . Reinforcement . | . . . Assault . | . . . Garrison . | . . . Intercept . | . . . Searches Triggered . | . . . Construction Impeded . | . . . Haulers Reinforced . | . . . Active Scanning Responses . | . . . Cargo Convoy Interrupts . | . . . Stealth | -11 -10 -10 --------- Run | Yrd Mat Sub Distress Signals 1 | . 1 . Communications Jammed . | . . . Distress Signals . | . . . Times Spotted 20 | . 8 12 Peak Tracking Total 6 | . 3 6 Tactical Retreats 1 | . . 1 Traps | -11 -10 -10 ------- Run | Yrd Mat Sub Traps Triggered . | . . . Indirectly . | . . . Trap Hack Attempts . | . . . Triggered . | . . . Disarmed . | . . . Reprogrammed . | . . . Reused . | . . . Traps Extracted . | . . . Installed . | . . . Triggered . | . . . Machines | -11 -10 -10 ---------- Run | Yrd Mat Sub Machines Disabled . | . . . Max in Single Turn . | . . . Machines Repaired . | . . . Machines Dismantled . | . . . Machines Sabotaged . | . . . Overloaded Fab Kills . | . . . Hacking | -11 -10 -10 --------- Run | Yrd Mat Sub Machines Accessed 3 | . 3 . Terminals 2 | . 2 . Fabricators . | . . . Repair Stations . | . . . Recycling Units 1 | . 1 . Scanalyzers . | . . . Garrison Access . | . . . Total Hacks 7 | . 7 . Successful 4 | . 4 . Failed 3 | . 3 . Catastrophic . | . . . Database Lockouts . | . . . Manual . | . . . Terminals 5 | . 5 . Fabricators . | . . . Repair Stations . | . . . Recycling Units 2 | . 2 . Scanalyzers . | . . . Garrison Access . | . . . Terminal Hacks 3 | . 3 . Record 3 | . 3 . Fabricator Hacks . | . . . Repair Station Hacks . | . . . Recycling Unit Hacks 1 | . 1 . Report Inventory 1 | . 1 . Scanalyzer . | . . . Garrison Access Hacks . | . . . Unauthorized Hacks . | . . . Terminals . | . . . Fabricators . | . . . Repair Stations . | . . . Recycling Units . | . . . Scanalyzers . | . . . Garrison Access . | . . . Data Cores Recovered . | . . . Used . | . . . Hacking Detections 3 | . 3 . Full Trace Events . | . . . Feedback Events . | . . . Feedback Blocked . | . . . Robot Schematics Acquired . | . . . Robots Built . | . . . Authchips . | . . . Time . | . . . Total Robot Build Rating . | . . . Part Schematics Acquired . | . . . Parts Built . | . . . Authchips . | . . . Time . | . . . Total Part Build Rating . | . . . Part Studies Acquired . | . . . Parts Repaired . | . . . Time . | . . . Parts Recycled . | . . . Recycled Matter . | . . . Retrieved Matter . | . . . Retrieved Components . | . . . Parts Scanalyzed . | . . . Part Schematics Acquired . | . . . Parts Damaged . | . . . Bothacking | -11 -10 -10 ------------ Run | Yrd Mat Sub Used RIF Installer . | . . . Robots Hacked . | . . . Non-combat . | . . . Combat . | . . . Robot Hacks Applied . | . . . Relay Couplers Released . | . . . Fabnet Peak Effective % . | . . . Robots Rewired . | . . . Allies Hacked . | . . . Hacks Repelled . | . . . Allies | -11 -10 -10 -------- Run | Yrd Mat Sub Total Allies . | . . . Largest Group . | . . . Highest-Rated Group . | . . . Highest-Rated Ally . | . . . Total Orders . | . . . Ally Attacks . | . . . Total Damage . | . . . Kills . | . . . Allies Corrupted . | . . . Allies Melted . | . . . Intel | -11 -10 -10 ------- Run | Yrd Mat Sub Active Infowar (turns) 539 | 67 390 82 Seismic 539 | 67 390 82 Robot Analysis Total . | . . . Derelict Logs Recovered . | . . . Drone Launches . | . . . Drone Recoveries . | . . . Exploration | -11 -10 -10 ------------- Run | Yrd Mat Sub Turns Passed 709 | 130 390 189 Spaces Moved 434 | 84 248 102 Core 5 | 5 . . Treads . | . . . Legs 429 | 79 248 102 Wheels . | . . . Hover . | . . . Flight . | . . . Fastest Speed 50 | 50 120 120 Average Speed 119 | 115 120 120 Slowest Speed 120 | 120 120 120 Overloaded Moves . | . . . Propulsion Burnouts . | . . . Robots Hopped . | . . . Potential Cave-ins . | . . . Cave-ins Triggered . | . . . Exploration Rate (%) 14 | 6 26 10 Regions Visited 2 Branch Regions 1 Pre-discovered Areas . | . . . Known Exits Taken . | . . . Unknown Exits Taken 2 | 1 1 . Scrap Searched . | . . . Spaces Dug . | . . . Terrain Destroyed . | . . . Melee . | . . . Projectile . | . . . AOE . | . . . Terrain Rammed . | . . . Walls Destroyed . | . . . Machines Disabled . | . . . Actions | -11 -10 -10 --------- Run | Yrd Mat Sub Total 544 | 103 295 146 Wait 23 | . 5 18 Move 432 | 83 247 102 Hop . | . . . Pick Up 17 | 8 8 1 Fast Attach 8 | 6 1 1 Attach 3 | 1 . 2 Detach . | . . . Swap 5 | . 2 3 Drop 11 | . 8 3 Fire 45 | 5 24 16 Melee . | . . . Ram . | . . . Kick . | . . . Crush . | . . . Escape Stasis . | . . . Rewire . | . . . Trap . | . . . Miscellaneous . | . . . Route ------- -11/Scrapyard -10/Materials -10/Subcaves History --------- Turn | Location | Event 3 | -11/Scrapyard | Discovered new exit (range 16) 131 | -11/Scrapyard | Entered Materials 309 | -10/Materials | Build established: Mutant 488 | -10/Materials | Discovered new exit (range 8) 521 | -10/Materials | Entered Subcaves 522 | -10/Subcaves | Approached by a straggling Scientist 555 | -10/Subcaves | Curiously followed by a Cobbler waking with a query about "LVR3C" 593 | -10/Subcaves | Ambushed by swarm of Subdwellers 595 | -10/Subcaves | Ambushed by Subdwellers from Twisted Machinery 675 | -10/Subcaves | Core integrity fell below 50% 702 | -10/Subcaves | Lost 3 parts (1p2w) 704 | -10/Subcaves | Core integrity fell below 20% 710 | -10/Subcaves | Destroyed by TH-8CQ(R) with Subdweller Beam Cannon Last Messages --------------- 00646_ Dropped Aluminum Leg. 00653_ Dropped Visual Processing Unit. 00654_ Acquired Sub. Optics. 00656_ Acquired 3 matter. 00659_ Lgt. Cannon destroyed. 00663_ Subatomizers dissect the Sub. Machine Gun. 00664_ EN-D1M(R) affixes Scrap Shield Fragment to Scrap Shield. 00671_ Lgt. Nuclear Core destroyed. 00673_ DK-KNP(R) affixes Scrap Shield Fragment to Scrap Shield. 00680_ Z7-A5C(O) cries out in pain. 00680_ Z7-A5C(O) destroyed. 00680_ EN-D1M(R) affixes Scrap Shield Fragment to Scrap Shield. 00689_ Subatomizers dissect the Disposable Heat Sink. 00692_ DE-2EQ(R) destroyed. 00694_ CT-VQS(R): "MADSUB!" 00696_ TH-8CQ(R): "SUBHATE!" 00696_ X5-RCX(R): "OHNO!" 00702_ Med. Laser destroyed. 00706_ Myomer Leg destroyed. 00709_ Acquired 16 matter. Map ----- +----------------------------------------------------+ | ?????????????????????##[=##??????????????????????? | | ??????????????????????#!! #??###?????????????????? | | ?????????????????????##! ##?# #?????????????????? | | ?????????????????????#!*=### #?????????????????? | | ?????????????????????# ## #??????????????????? | | ?????????????????????# #??????????????????? | | ?????????????????????# #??????????????????? | | ?????????????????????## * = ####???????????????? | | ??????????????????????# #???????????????? | | ??????????????????????# ##??????????????? | | ?????????????????????## ##?????????????? | | ????????????????????## #?????????????? | | ????????????????????# #????????????? | | ?????????????????#### #????????????? | | ???????????####### %= ## #????????????? | | ??????????""" %# % * ##?# #????????????? | | ?????????? "" #???# ##????????????? | | ???????" ## R ##???? #?????????????? | | ??????? ### ?# & #?????# #?????????????? | | ????????????# ## R% "??????# ?????????????? | | ????????????# R ! #???????#####????????????? | | ????????????# #????????????????????????? | | ????????????## # #????????????????????????? | | ?????????????####=%! ##?????????#?????????????? | | ????????????????# [ #### #?????????????? | | ????????????????#### @= #??????????????? | | ???????????????????# = #??????????????? | | ???????????????????# #??????????????? | | ???????????????????# #??????????????? | | ???????????????????# ## #??????????????? | | ??????????????????# #?# #??????????????? | | ??????????????????# ?? #??????????????? | | ??????????????????# ## ??? ##??????????????? | | ??????????????????# ??# ???##???????????????? | | ?????????????????? ??? ????????????????????? | | ????????????????? ??? ???????????????????? | | ???????????????? #??? #???????????????????? | | ???????????????? ###???? #???????????????????? | | ?????????????????? ??????? #???????????????????? | | ???????????????????????????? #???????????????????? | | ?????????????????????????????????????????????????? | | ?????????????????????????????????????????????????? | | ?????????????????????????????????????????????????? | | ?????????????????????????????????????????????????? | | ?????????????????????????????????????????????????? | | ?????????????????????????????????????????????????? | | ?????????????????????????????????????????????????? | | ?????????????????????????????????????????????????? | | ?????????????????????????????????????????????????? | | ?????????????????????????????????????????????????? | +----------------------------------------------------+ Best States ------------- Heat Dissipation 25 Energy Generation 14 Energy Capacity 160 Matter Stores 300 Matter Capacity 300 Sight Range 16 Terrain Scan Density 10 Evasion (%) 55 Targeting Accuracy 5 Item Schematics ----------------- None Robot Schematics ------------------ None Fabricated ------------ Nothing Repaired ---------- Nothing Studied --------- None Alien Tech Used ----------------- None Achievements -------------- None Challenges ------------ None Game ------ Seed ShadeBackdoorConstruct Manual? 0 Play Time 00:15:14 Cumulative 22.8 hours Start 2026.09.04 @ 11:46:48 End 2026.09.04 @ 12:02:02 Sessions 1 Manual Loads 0 Difficulty Rogue Special Mode None Game No. 13 Rogue 11 Adventurer 2 Explorer 0 Win Type - Total 0 Types 0/0/0/0/0/0/0/0/0/0 Lore% 5 Gallery% 17 Achievement% 14 Wizard Run 0 Options --------- Layout 0 ASCII 0 Keyboard 0 Movement Mouse Keybinds 0 Fullscreen 1 Font 18/SmallcapsGlow Map View 38x25 Zoom Use 99% Tactical HUD 1 Map Filters NONE Filters NONE Steam 1 RUN: 2d2122d2-baf3-4b3f-b3ed-b0c953aff78d